fUST/lending_fUST_20250226
["ID","MTS","AMOUNT","RATE_DAILY","PERIOD"]
[354555287,1740574247419,-614.03,0.00106575,120]
[354555292,1740574247460,-623.77,0.00106575,120]
[354555297,1740574247501,-2707.66,0.00107,60]
[354555303,1740574247545,-1900.0,0.00107082,120]
[354555308,1740574247585,-1900.0,0.0010763,120]
[354555313,1740574247625,-2500.0,0.00107708,14]
[354555318,1740574247664,-2000.0,0.00108,120]
[354555324,1740574247704,-5000.0,0.00108,120]
[354555329,1740574247744,-2707.67,0.00108,60]
[354555334,1740574247784,-1900.0,0.00108178,120]
[354555339,1740574247823,-12944.58,0.00108219,120]
[354555344,1740574247863,-357.19121365,0.00108726,120]
[354555350,1740574247903,-2500.0,0.00108808,14]
[354555355,1740574247945,-500.0,0.001089,120]
[354555360,1740574247985,-160.0,0.0010895,5]
[354555365,1740574248023,-276.20925805,0.0010895,5]
[354555370,1740574248061,-28125.8971833,0.00109,30]
[354555375,1740574248100,-51586.96647397,0.00109,30]
[354555380,1740574248139,-1668.14,0.00109041,120]
[354555386,1740574248178,-625.0,0.00109041,120]
[354555391,1740574248217,-925.76,0.00109041,120]
[354555396,1740574248258,-515.49,0.00109041,120]
[354555401,1740574248298,-593.77,0.00109041,15]
[354555407,1740574248340,-1159.7,0.00109041,120]
[354555412,1740574248384,-2082.16,0.00109041,120]
[354555418,1740574248429,-612.21,0.00109041,120]
[354555424,1740574248474,-688.17,0.00109041,120]
[354555429,1740574248520,-208.38,0.00109041,120]
[354555435,1740574248569,-527.24,0.00109041,120]
[354555440,1740574248613,-1451.47,0.00109041,120]
[354555446,1740574248661,-737.18,0.00109041,120]
[354555451,1740574248709,-6042.79,0.00109041,7]
[354555457,1740574248753,-1329.29,0.00109041,120]
[354555462,1740574248796,-969.4,0.00109041,3]
[354555468,1740574248838,-2354.76,0.00109041,120]
[354555473,1740574248881,-614.03,0.00109041,120]
[354555479,1740574248923,-623.77,0.00109041,120]
[354555484,1740574248963,-710.54,0.00109315,120]
[354555490,1740574249008,-500.0,0.00109589,120]
[354555495,1740574249048,-500.0,0.0011,120]
[354555501,1740574249090,-155.732,0.0011,120]
[354555505,1740574249137,-500.0,0.0011,120]
[354555506,1740574249179,-500.0,0.0011,120]
[354555507,1740574249220,-500.0,0.0011,120]
[354555509,1740574249260,-397.00598801,0.0011,120]
[354555514,1740574249301,-500.0,0.00111031,120]
[354555519,1740574249343,-1668.235808,0.00111506,120]
[354555525,1740574249396,-625.0,0.00111506,120]
[354555531,1740574249442,-925.949618,0.00111506,120]
[354555536,1740574249486,-515.56628764,0.00111506,120]
[354555541,1740574249528,-593.97,0.00111506,15]
[354555546,1740574249572,-1159.78210857,0.00111506,120]
[354555551,1740574249616,-2082.19762266,0.00111506,120]
[354555557,1740574249659,-612.38675205,0.00111506,120]
[354555563,1740574249703,-688.28000005,0.00111506,120]
[354555568,1740574249746,-208.51832211,0.00111506,120]
[354555573,1740574249788,-527.31938167,0.00111506,120]
[354555579,1740574249829,-1451.56007566,0.00111506,120]
[354555584,1740574249873,-737.18490546,0.00111506,120]
[354555590,1740574249918,-6042.9607,0.00111506,7]
[354555595,1740574249959,-1329.38918984,0.00111506,120]
[354555600,1740574249998,-969.61913974,0.00111506,3]
[354555605,1740574250037,-2354.8933671,0.00111506,120]
[354555610,1740574250077,-614.09890264,0.00111506,120]
[354555615,1740574250119,-623.89079161,0.00111506,120]
[354555621,1740574250162,-12944.58,0.00112328,120]
[354555626,1740574250206,-500.0,0.00112473,120]
[354555632,1740574250249,-710.54,0.00112602,120]
[354555637,1740574250291,-500.0,0.00113915,120]
[354555642,1740574250336,-500.0,0.00115357,120]
[354555648,1740574250388,-500.0,0.001155,120]
[354555653,1740574250436,-710.54,0.0011589,120]
[354555659,1740574250482,-12944.58,0.00116438,120]
[354555664,1740574250525,-500.0,0.00116799,120]
[354555669,1740574250570,-500.0,0.00118241,120]
[354555674,1740574250612,-710.54,0.00119178,120]
[354555679,1740574250653,-500.0,0.00119683,120]
[354555685,1740574250694,-883.23655594,0.0012,120]
[354555690,1740574250736,-12944.58,0.00120547,120]
[354555695,1740574250778,-500.0,0.00121125,120]
[354555700,1740574250817,-500.0,0.00121275,120]
[354555705,1740574250862,-150.0,0.00122,60]
[354555711,1740574250905,-710.54,0.00122465,120]
[354555716,1740574250948,-250.0,0.00122548,60]
[354555721,1740574250987,-500.0,0.00122567,120]
[354555727,1740574251028,-350.0,0.00123096,60]
[354555732,1740574251068,-887.0,0.00123499,90]
[354555737,1740574251107,-440.0,0.00123627,120]
[354555741,1740574251144,-450.0,0.00123644,60]
[354555747,1740574251187,-500.0,0.00124009,120]
[354555752,1740574251232,-550.0,0.00124192,60]
[354555758,1740574251275,-12944.58,0.00124657,120]
[354555763,1740574251316,-650.0,0.0012474,60]
[354555768,1740574251361,-3000.0,0.00125135,14]
[354555774,1740574251407,-677.19601287,0.00125288,60]
[354555779,1740574251455,-500.0,0.00125451,120]
[354555781,1740574251501,-710.54,0.00125753,120]
[354555782,1740574251553,-3000.0,0.00126235,14]
[354555783,1740574251602,-500.0,0.00126893,120]
[354555784,1740574251647,-947.24,0.00127,60]
[354555785,1740574251695,-500.0,0.00127339,120]
[354555786,1740574251745,-2626.8,0.0012755,99]
[354555798,1740574251920,-500.0,0.00128335,120]
[354555803,1740574251971,-12944.58,0.00128767,120]
[354555809,1740574252021,-710.54,0.00129041,120]
[354555814,1740574252072,-500.0,0.00129777,120]
[354555820,1740574252122,-1000.0,0.0013,120]
[354555825,1740574252170,-1000.0,0.0013,120]
[354555831,1740574252221,-1000.0,0.0013,120]
[354555837,1740574252274,-500.0,0.00131219,120]
[354555843,1740574252328,-710.54,0.00132328,120]
[354555849,1740574252385,-500.0,0.00132661,120]
[354555854,1740574252437,-12944.58,0.00132876,120]
[354555859,1740574252486,-500.0,0.00133706,120]
[354555865,1740574252539,-500.0,0.00134103,120]
[354555870,1740574252590,-500.0,0.00135545,120]
[354555876,1740574252638,-710.61487829,0.00135616,120]
[354555881,1740574252683,-12944.58,0.00136986,120]
[354555887,1740574252726,-364.56757,0.00136986,120]
[354555892,1740574252774,-500.0,0.00136987,120]
[354555898,1740574252823,-12944.58,0.00141095,120]
[354555903,1740574252869,-364.56757,0.00144196,120]
[354555909,1740574252914,-3500.0,0.00144404,14]
[354555914,1740574252961,-12944.58,0.00145205,120]
[354555920,1740574253004,-3500.0,0.00145504,14]
[354555925,1740574253046,-12944.6965609,0.00149315,120]
[354555930,1740574253086,-10000.0,0.0015,91]
[354555936,1740574253129,-1000.0,0.0015,120]
[354555941,1740574253167,-37411.59429663,0.0015,120]
[354555983,1740574253570,-421.46558316,0.00068493,120]
[354555985,1740574253579,-421.46558316,0.00068493,120]
[354555987,1740574253589,-421.46558316,0.00068493,120]
[354555989,1740574253598,-421.46558316,0.00068493,120]
[354555991,1740574253609,-421.46558316,0.00068493,120]
[354555993,1740574253619,-421.46558316,0.00068852,120]
[354555995,1740574253629,-421.46558316,0.00069376,120]
[354555997,1740574253637,-421.46,0.000699,120]
[354555998,1740574253647,-1414.93,0.0006999,10]
[354556000,1740574253656,-1179.11,0.0008949,10]
[354556003,1740574253667,-42517.68352632,0.00099498,120]
[354556005,1740574253676,-200.45400296,0.001497,120]
[354556007,1740574253686,-82024.76775767,0.0015,120]
[354556009,1740574253695,-1000.0,0.0015,120]
[354556010,1740574253704,-1000.0,0.0015,120]
[354556012,1740574253714,-1000.0,0.0015,120]
[354556014,1740574253724,-947.24,0.00151,60]
[354556016,1740574253734,-364.56757,0.00151406,120]
[354556018,1740574253743,-222.20827847,0.00156636,120]
[354556020,1740574253753,-364.56757,0.00158616,120]
[354556023,1740574253763,-364.56757,0.00165826,120]
[354556025,1740574253773,-4000.0,0.00166453,14]
[354556026,1740574253782,-2266.84,0.00167,60]
[354556028,1740574253792,-1303.47492,0.00169175,90]
[354556030,1740574253801,-364.56757,0.00173035,120]
[354556032,1740574253810,-364.56757,0.00180245,120]
[354556034,1740574253819,-364.56757,0.00187455,120]
[354556036,1740574253829,-947.24,0.00188,60]
[354556039,1740574253839,-4500.0,0.00188958,14]
[354556040,1740574253848,-364.56757,0.00194665,120]
[354556042,1740574253860,-500.0,0.002,120]
[354556044,1740574253870,-541.15453189,0.002,120]
[354556046,1740574253880,-300.0,0.002,120]
[354556048,1740574253889,-1000.0,0.002,120]
[354556050,1740574253899,-1000.0,0.002,120]
[354556052,1740574253909,-1000.0,0.002,120]
[354556054,1740574253922,-1000.0,0.002,120]
[354556056,1740574253931,-5000.0,0.002,120]
[354556058,1740574253940,-500.0,0.002,120]
[354556060,1740574253949,-1287.5322,0.002,120]
[354556062,1740574253959,-1809.3344,0.00201,92]
[354556064,1740574253968,-364.56757,0.00201875,120]
[354556066,1740574253978,-364.56757,0.00209084,120]
[354556068,1740574253987,-5000.0,0.00212918,14]
[354556070,1740574253997,-364.56757,0.00216294,120]
[354556072,1740574254006,-213.3345834,0.0021863,60]
[354556074,1740574254015,-1122.0218125,0.0021863,60]
[354556076,1740574254025,-312.6032144,0.0021863,60]
[354556078,1740574254034,-364.56757,0.00223504,120]
[354556080,1740574254043,-2266.84,0.00225,60]
[354556082,1740574254053,-2032.15,0.0023,60]
[354556084,1740574254064,-1000.0,0.0023,120]
[354556086,1740574254078,-1000.0,0.0023,120]
[354556088,1740574254087,-1000.0,0.0023,120]
[354556090,1740574254098,-364.56757,0.00230714,120]
[354556092,1740574254110,-364.56757,0.00237924,120]
[354556095,1740574254120,-5500.0,0.00238248,14]
[354556097,1740574254132,-364.56757,0.00245133,120]
[354556099,1740574254142,-947.24,0.00247,60]
[354556101,1740574254153,-1000.0,0.00251047,120]
[354556103,1740574254174,-364.56757,0.00252343,120]
[354556105,1740574254195,-1160.61022,0.00252957,113]
[354556107,1740574254216,-364.56757,0.00259553,120]
[354556109,1740574254237,-1460.0,0.0026,115]
[354556111,1740574254249,-6000.0,0.00264879,14]
[354556112,1740574254259,-364.56757,0.00266763,120]
[354556114,1740574254268,-20000.0,0.00273,120]
[354556116,1740574254278,-364.56757,0.00273973,120]
[354556118,1740574254287,-469.88,0.002766,87]
[354556120,1740574254297,-469.88,0.002766,87]
[354556122,1740574254306,-469.88,0.002766,87]
[354556124,1740574254316,-469.88,0.002766,87]
[354556126,1740574254326,-469.88,0.002766,87]
[354556128,1740574254335,-469.88,0.002766,87]
[354556129,1740574254345,-469.88,0.002766,87]
[354556130,1740574254356,-469.88,0.002766,87]
[354556131,1740574254366,-469.88,0.002766,87]
[354556132,1740574254375,-469.88,0.002766,87]
[354556133,1740574254385,-469.88,0.002766,87]
[354556134,1740574254395,-469.88,0.002766,87]
[354556135,1740574254405,-469.88,0.002766,87]
[354556137,1740574254416,-469.88,0.002766,87]
[354556139,1740574254426,-469.88,0.002766,87]
[354556141,1740574254436,-469.88,0.002766,87]
[354556143,1740574254446,-469.88,0.002766,87]
[354556145,1740574254455,-469.88,0.002766,87]
[354556147,1740574254464,-469.88,0.002766,87]
[354556149,1740574254473,-469.88,0.002766,87]
[354556151,1740574254483,-469.88,0.002766,87]
[354556152,1740574254493,-469.88,0.002766,87]
[354556154,1740574254503,-469.88,0.002766,87]
[354556156,1740574254512,-469.88,0.002766,87]
[354556159,1740574254522,-3000.0,0.002889,120]
[354556161,1740574254531,-5000.0,0.0029,120]
[354556162,1740574254545,-6500.0,0.00292749,14]
[354556165,1740574254554,-5000.0,0.002969,120]
[354556167,1740574254563,-500.0,0.003,120]
[354556169,1740574254572,-175.00308653,0.003,120]
[354556171,1740574254583,-300.0,0.003,120]
[354556173,1740574254593,-1043.88475443,0.003,120]
[354556174,1740574254603,-151.0,0.003,120]
[354556176,1740574254613,-10000.0,0.003,120]
[354556178,1740574254623,-5800.0,0.003,120]
[354556180,1740574254632,-1207.2,0.003065,110]
[354556182,1740574254642,-947.24,0.00314,120]
[354556185,1740574254651,-7000.0,0.00321806,14]
[354556187,1740574254660,-2734.752986,0.0033333,120]
[354556189,1740574254670,-2266.84,0.0034,60]
[354556191,1740574254679,-2305.42,0.00345,60]
[354556193,1740574254687,-1000.0,0.0035,120]
[354556195,1740574254697,-5000.0,0.0035,120]
[354556197,1740574254707,-7500.0,0.00352004,14]
[354556199,1740574254717,-1996.8,0.00375,60]
[354556201,1740574254726,-8000.0,0.003833,14]
[354556203,1740574254735,-600.0,0.0039797,120]
[354556205,1740574254744,-500.0,0.004,120]
[354556207,1740574254753,-500.0,0.004,120]
[354556209,1740574254762,-4000.0,0.004,120]
[354556211,1740574254771,-300.0,0.004,120]
[354556213,1740574254780,-5000.0,0.004,120]
[354556215,1740574254790,-9699.82417781,0.0040158,120]
[354556217,1740574254800,-151.0,0.00404548,120]
[354556219,1740574254810,-947.24,0.00412,120]
[354556221,1740574254821,-8500.0,0.00415658,14]
[354556223,1740574254831,-1439.11,0.00416506,95]
[354556225,1740574254841,-151.0,0.0042,120]
[354556227,1740574254851,-5000.0,0.0044,120]
[354556229,1740574254864,-9000.0,0.00449043,14]
[354556231,1740574254875,-5000.0,0.0045,120]
[354556233,1740574254886,-30000.0,0.0045388,120]
[354556235,1740574254898,-1000.0,0.0046908,120]
[354556237,1740574254909,-9500.0,0.00483425,14]
[354556239,1740574254921,-3000.0,0.004889,120]
[354556241,1740574254933,-9022.80391405,0.0049,120]
[354556243,1740574254944,-551.59434589,0.0049,120]
[354556245,1740574254955,-5000.0,0.0049,120]
[354556247,1740574254966,-5000.0,0.004969,120]
[354556249,1740574254977,-500.0,0.005,120]
[354556251,1740574254988,-300.0,0.005,120]
[354556253,1740574254998,-1533.27486367,0.005,120]
[354556255,1740574255008,-3000.0,0.005,120]
[354556256,1740574255019,-10000.0,0.005,90]
[354556258,1740574255030,-5000.0,0.005,120]
[354556261,1740574255042,-50000.0,0.005,120]
[354556263,1740574255052,-469.88,0.005028,87]
[354556265,1740574255062,-469.88,0.005028,87]
[354556267,1740574255073,-469.88,0.005028,87]
[354556269,1740574255083,-469.88,0.005028,87]
[354556271,1740574255093,-469.88,0.005028,87]
[354556273,1740574255105,-469.88,0.005028,87]
[354556275,1740574255116,-469.88,0.005028,87]
[354556277,1740574255126,-469.88,0.005028,87]
[354556279,1740574255136,-469.88,0.005028,87]
[354556281,1740574255148,-469.88,0.005028,87]
[354556294,1740574255159,-469.88,0.005028,87]
[354556296,1740574255281,-469.88,0.005028,87]
[354556298,1740574255291,-469.88,0.005028,87]
[354556300,1740574255301,-469.88,0.005028,87]
[354556302,1740574255311,-469.88,0.005028,87]
[354556304,1740574255321,-469.88,0.005028,87]
[354556306,1740574255332,-469.88,0.005028,87]
[354556308,1740574255343,-469.88,0.005028,87]
[354556310,1740574255357,-469.88,0.005028,87]
[354556312,1740574255368,-469.88,0.005028,87]
[354556314,1740574255379,-469.88,0.005028,87]
[354556316,1740574255390,-469.88,0.005028,87]
[354556318,1740574255401,-469.88,0.005028,87]
[354556320,1740574255412,-469.88,0.005028,87]
[354556322,1740574255422,-2004.35373204,0.00518776,14]
[354556324,1740574255434,-231768.8797655,0.0053,120]
[354556326,1740574255444,-2266.84,0.0054,60]
[354556328,1740574255454,-300.0,0.0054,120]
[354556330,1740574255464,-151.0,0.0054,120]
[354556332,1740574255474,-20000.0,0.0054,120]
[354556334,1740574255484,-1000.0,0.0054794,120]
[354556336,1740574255495,-1000.0,0.0054794,120]
[354556338,1740574255505,-5000.0,0.0055,120]
[354556340,1740574255515,-1000.0,0.005726,120]
[354556342,1740574255525,-300.0,0.0058,120]
[354556344,1740574255534,-1898.233788,0.005803,77]
[354556346,1740574255550,-18800.0,0.00585,120]
[354556348,1740574255559,-322.823386,0.0058711,120]
[354556350,1740574255569,-500.0,0.006,120]
[354556352,1740574255578,-163.684,0.006,120]
[354556354,1740574255587,-400.0,0.006,120]
[354556356,1740574255596,-1000.0,0.006,120]
[354556358,1740574255610,-160.0,0.006,120]
[354556360,1740574255619,-300.0,0.006,120]
[354556362,1740574255629,-5000.0,0.006,120]
[354556364,1740574255639,-1000.0,0.00602344,120]
[354556366,1740574255649,-947.24,0.0062,120]
[354556368,1740574255658,-2618.45329126,0.00621696,30]
[354556370,1740574255667,-40123.46227942,0.00629999,120]
[354556372,1740574255677,-200.0,0.0064,120]
[354556374,1740574255686,-20000.0,0.0064,120]
[354556376,1740574255695,-102225.03184521,0.00649898,120]
[354556378,1740574255705,-17480.9187771,0.00649898,120]
[354556380,1740574255714,-5000.0,0.0065,120]
[354556382,1740574255724,-151.0,0.0066,120]
[354556384,1740574255734,-1000.0,0.0066,120]
[354556386,1740574255743,-191.0883796,0.00667243,120]
[354556388,1740574255752,-11448.00000099,0.0067875,120]
[354556390,1740574255761,-5000.0,0.0068,120]
[354556392,1740574255771,-500.0,0.00684904,120]
[354556395,1740574255780,-500.0,0.00684904,120]
[354556397,1740574255790,-500.0,0.00684904,120]
[354556399,1740574255799,-500.0,0.00684904,120]
[354556401,1740574255808,-500.0,0.00684904,120]
[354556403,1740574255818,-500.0,0.00684904,120]
[354556405,1740574255827,-500.0,0.00684904,120]
[354556407,1740574255837,-500.0,0.00684904,120]
[354556409,1740574255846,-500.0,0.00684904,120]
[354556411,1740574255858,-500.0,0.00684904,120]
[354556413,1740574255868,-500.0,0.00684904,120]
[354556415,1740574255878,-500.0,0.00684904,120]
[354556417,1740574255888,-500.0,0.00684904,120]
[354556419,1740574255898,-500.0,0.00684904,120]
[354556421,1740574255908,-500.0,0.00684904,120]
[354556423,1740574255918,-500.0,0.00684904,120]
[354556425,1740574255927,-500.0,0.00684904,120]
[354556427,1740574255938,-500.0,0.00684904,120]
[354556429,1740574255948,-500.0,0.00684904,120]
[354556432,1740574255957,-500.0,0.00684904,120]
[354556434,1740574255967,-152.40590414,0.00684904,120]
[354556436,1740574255976,-3000.0,0.006889,120]
[354556438,1740574255986,-162829.808226,0.0069,120]
[354556440,1740574255995,-2051.87782605,0.0069,120]
[354556442,1740574256004,-5000.0,0.006969,120]
[354556444,1740574256014,-9876.0,0.0069875,120]
[354556446,1740574256023,-500.0,0.007,120]
[354556448,1740574256033,-5000.0,0.007,90]
[354556450,1740574256042,-67804.3549526,0.007,120]
[354556452,1740574256051,-14521.83317801,0.007,120]
[354556454,1740574256060,-151.0,0.00709096,120]
[354556456,1740574256069,-37609.66436133,0.0071,120]
[354556458,1740574256079,-9876.0,0.0071875,120]
[354556460,1740574256088,-20000.0,0.00729,120]
[354556462,1740574256098,-469.88,0.00729,87]
[354556464,1740574256109,-469.88,0.00729,87]
[354556466,1740574256118,-469.88,0.00729,87]
[354556468,1740574256127,-469.88,0.00729,87]
[354556470,1740574256137,-469.88,0.00729,87]
[354556472,1740574256146,-469.88,0.00729,87]
[354556474,1740574256155,-469.88,0.00729,87]
[354556476,1740574256164,-469.88,0.00729,87]
[354556478,1740574256176,-469.88,0.00729,87]
[354556480,1740574256185,-469.88,0.00729,87]
[354556482,1740574256195,-469.88,0.00729,87]
[354556484,1740574256204,-469.88,0.00729,87]
[354556486,1740574256213,-469.88,0.00729,87]
[354556488,1740574256223,-469.88,0.00729,87]
[354556490,1740574256233,-469.88,0.00729,87]
[354556492,1740574256244,-469.88,0.00729,87]
[354556494,1740574256253,-469.88,0.00729,87]
[354556496,1740574256263,-469.88,0.00729,87]
[354556498,1740574256272,-469.88,0.00729,87]
[354556500,1740574256282,-469.88,0.00729,87]
[354556502,1740574256292,-469.88,0.00729,87]
[354556504,1740574256302,-469.88,0.00729,87]
[354556506,1740574256311,-469.88,0.00729,87]
[354556508,1740574256320,-469.88,0.00729,87]
[354556510,1740574256330,-1999.999999,0.00735275,120]
[354556512,1740574256339,-68531.78214973,0.00737,120]
[354556514,1740574256349,-425.64367601,0.00737,120]
[354556516,1740574256360,-15000.0,0.007378,120]
[354556518,1740574256370,-9888.01354484,0.00738759,120]
[354556520,1740574256379,-200.0,0.0074,120]
[354556522,1740574256389,-869.84479488,0.0074,120]
[354556524,1740574256398,-1010.0,0.0074747,120]
[354556526,1740574256408,-10000.0,0.007488,120]
[354556528,1740574256418,-10000.0,0.0075,120]
[354556530,1740574256428,-10000.0,0.0075,120]
[354556532,1740574256438,-5000.0,0.0075,120]
[354556537,1740574256476,-417.92098624,0.0075224,120]
[354556557,1740574256661,-2000.0,0.00087912,30]
[354558924,1740574380697,19601.91606613,4.6e-07,2]
[354558926,1740574747702,571.0,0.00014232,2]
[354558927,1740574943848,189.0,0.00047993,30]
[354558971,1740575029814,3400.0,0.00028,120]
[354559476,1740575208056,-388.73303571,0.000455,60]
[354559572,1740575338046,500.0,0.00048078,30]
[354559653,1740575432380,-151.0,0.00045,120]
[354559656,1740575432390,-300.0,0.00045499,5]
[354559658,1740575432399,-18611.26696329,0.000455,60]
[354559660,1740575432409,-388.73363863,0.00045666,15]
[354559661,1740575432418,-999.999999,0.00047,30]
[354559663,1740575432428,-277.078422,0.00047971,2]
[354559665,1740575432438,-500.0,0.00048,120]
[354559667,1740575432447,-527.30049164,0.00048025,30]
[354559670,1740575432458,-151.0,0.00048078,30]
[354559671,1740575432467,-152.0,0.00048186,2]
[354559673,1740575432477,-151.0,0.00048767,120]
[354559676,1740575432487,-500.0,0.00049,120]
[354559677,1740575432497,-200.0,0.0005,120]
[354559679,1740575432506,-153.83,0.000504,48]
[354559681,1740575432516,-153.83,0.000504,48]
[354559684,1740575432526,-153.83,0.000504,48]
[354559685,1740575432535,-153.83,0.000504,48]
[354559687,1740575432544,-153.83,0.000504,48]
[354559689,1740575432553,-153.83,0.000504,48]
[354559692,1740575432563,-500.0,0.00052,120]
[354559694,1740575432572,-151.0,0.00052521,120]
[354559696,1740575432582,-154.8760086,0.00053462,30]
[354559699,1740575432591,-710.587666,0.00053462,30]
[354559702,1740575432600,-306.0,0.00053462,30]
[354559704,1740575432610,-154.8760086,0.00053462,30]
[354559707,1740575432620,-154.8760086,0.00053462,30]
[354559710,1740575432629,-557.2941539,0.00053462,30]
[354559714,1740575432638,-154.8760086,0.00053462,30]
[354559716,1740575432649,-154.4412523,0.00053462,30]
[354559719,1740575432658,-154.8331553,0.00053462,30]
[354559722,1740575432667,-153.0,0.00053462,30]
[354559725,1740575432677,-153.309444,0.00053462,30]
[354559729,1740575432686,-707.9659294,0.00053462,30]
[354559731,1740575432695,-306.0,0.00053462,30]
[354559733,1740575432706,-1114.5883078,0.00053462,30]
[354559735,1740575432715,-32053.11654235,0.00054693,30]
[354559737,1740575432727,-8822.22918386,0.00054693,30]
[354559752,1740575432873,-459124.63853379,0.00054693,30]
[354559754,1740575432883,-39401.62304746,0.00054694,120]
[354559756,1740575432894,-342.01305687,0.00054694,2]
[354559758,1740575432905,-15000.0,0.000547,45]
[354559760,1740575432915,-500.0,0.00054773,10]
[354559762,1740575432924,-500.0,0.00054773,10]
[354559764,1740575432935,-500.0,0.00054773,10]
[354559766,1740575432948,-311.9205989,0.00054773,10]
[354559768,1740575432958,-500.0,0.00054773,10]
[354559770,1740575432967,-500.0,0.00054773,10]
[354559772,1740575432977,-258.7279871,0.00054773,10]
[354559774,1740575432987,-500.0,0.00054773,10]
[354559776,1740575432996,-161.44981494,0.00054773,10]
[354559778,1740575433006,-501.58207678,0.00054773,10]
[354559780,1740575433017,-152.241,0.00054793,103]
[354559782,1740575433027,-169.065,0.00054793,103]
[354559784,1740575433037,-644.93454195,0.00054793,120]
[354559786,1740575433047,-1000.0,0.00054793,120]
[354559788,1740575433056,-500.0,0.00054793,2]
[354559790,1740575433066,-500.0,0.00054793,2]
[354559793,1740575433076,-500.0,0.00054793,2]
[354559795,1740575433085,-500.0,0.00054793,2]
[354559796,1740575433094,-500.0,0.00054793,2]
[354559798,1740575433105,-500.0,0.00054793,2]
[354559801,1740575433115,-500.0,0.00054793,2]
[354559802,1740575433124,-500.0,0.00054793,2]
[354559804,1740575433133,-500.0,0.00054793,2]
[354559807,1740575433143,-255.70475006,0.00054793,2]
[354559809,1740575433153,-500.0,0.00054793,2]
[354559811,1740575433163,-500.0,0.00054793,2]
[354559813,1740575433173,-500.0,0.00054793,2]
[354559815,1740575433182,-500.0,0.00054793,2]
[354559817,1740575433192,-500.0,0.00054793,2]
[354559819,1740575433202,-500.0,0.00054793,2]
[354559821,1740575433212,-500.0,0.00054793,2]
[354559823,1740575433222,-500.0,0.00054793,31]
[354559825,1740575433231,-234.96418303,0.00054793,120]
[354559827,1740575433241,-280.8746773,0.00054793,120]
[354559829,1740575433251,-500.0,0.00054793,120]
[354559831,1740575433261,-500.0,0.00054794,30]
[354559833,1740575433271,-500.0,0.00054794,120]
[354559835,1740575433282,-500.0,0.00054794,120]
[354559837,1740575433293,-500.0,0.00054794,120]
[354559839,1740575433303,-500.0,0.00054794,120]
[354559841,1740575433315,-500.0,0.00054794,120]
[354559843,1740575433325,-500.0,0.00054794,120]
[354559845,1740575433335,-507.59519644,0.00054794,120]
[354559847,1740575433345,-299.14230115,0.00054794,120]
[354559849,1740575433357,-627.4867248,0.00054794,120]
[354559851,1740575433368,-500.0,0.00054794,120]
[354559853,1740575433377,-500.0,0.00054794,15]
[354559855,1740575433387,-500.0,0.00054794,120]
[354559857,1740575433397,-500.0,0.00054794,120]